{"text_format":"3","workbook":"xlsx","n_sheets":2,"sheets":["Začiatok","Faktúra za služby"],"not_rendered":{"images":1,"defined_names":1},"read":"whole","date_system":"1900"}

{"sheet":"Začiatok","index":0,"n_rows":8,"n_cols":2,"rows_kept":8}
[null,"INFORMÁCIE O TEJTO ŠABLÓNE"]
[null,"Pomocou tejto šablóny môžete vytvoriť faktúru za služby."]
[null,"Zadajte číslo faktúry, dátum, názov spoločnosti, adresu, slogan a fakturačné údaje."]
[null,"Do tabuliek zadajte informácie."]
[null,"Celková hodnota sa automaticky vypočítava za vás."]
[null,"Poznámka: "]
[null,"V hárku FAKTÚRA ZA SLUŽBY sú v stĺpci A uvedené ďalšie pokyny. Tento text je zámerne skrytý. Ak chcete text odstrániť, vyberte stĺpec A a potom stlačte kláves DELETE. Ak chcete text zobraziť, vyberte stĺpec A a potom zmeňte farbu písma."]
[null,"Ak chcete získať ďalšie informácie o tabuľkách, v tabuľke stlačte kláves SHIFT a potom kláves F10, vyberte možnosť TABUĽKA a potom vyberte položku ALTERNATÍVNY TEXT."]

{"sheet":"Faktúra za služby","index":1,"n_rows":43,"n_cols":5,"rows_kept":43,"merged":[[0,1,0,2],[0,3,0,4],[1,1,1,4],[2,1,2,3],[3,1,3,3],[4,1,4,2],[5,1,5,2],[6,1,6,2],[7,1,7,2],[41,1,41,2],[41,3,41,4],[42,1,42,4]]}
["V tomto hárku môžete vytvoriť faktúra za služby. Do bunky napravo zadajte logo spoločnosti a do bunky D1 názov tohto hárka. V bunkách v tomto stĺpci na nachádzajú užitočné pokyny na používanie tohto hárka. Ďalší pokyn je v bunke A3.","V tejto bunke je zástupné logo.",null,"FAKTÚRA"]
[]
["Do bunky napravo zadajte názov spoločnosti.","Názov spoločnosti"]
["Do bunky napravo zadajte slogan spoločnosti.","Slogan spoločnosti"]
["Do bunky napravo zadajte adresu spoločnosti a do bunky E5 zadajte číslo faktúry.","Ulica",null,"ČÍSLO FAKTÚRY","Č."]
["Do bunky vpravo zadajte mesto a PSČ a do bunky E6 dátum.","PSČ mesto",null,"DÁTUM ",{"$f":"TODAY()","v":"2019-04-19"}]
["Do bunky napravo zadajte telefónne a faxové číslo a do bunky E7 ID.","Telefón fax",null,"ID ZÁKAZNÍKA ","ID"]
["Do bunky napravo zadajte e-mailovú adresu.","E-mail"]
["V bunke napravo sa nachádza označenie Pre. Do buniek C9 až C13 zadajte fakturačné údaje ako meno, názov spoločnosti, adresu a telefónne číslo. Ďalší pokyn je v bunke A14.","PRE","Meno"]
[null,null,"Názov spoločnosti"]
[null,null,"Ulica"]
[null,null,"PSČ mesto"]
[null,null,"Telefón"]
["Do tabuľky Podrobnosti o predaji začínajúcej sa v bunke napravo zadajte príslušné informácie. Ďalší pokyn je v bunke A17.","PREDAJCA","ZÁKAZKA","PLATOBNÉ PODMIENKY","DÁTUM SPLATNOSTI"]
[{"$nulls":3},"Splatnosť po prijatí"]
[]
["Do tabuľky Faktúra začínajúcej sa v bunke napravo zadajte príslušné informácie. Medzisúčet a celková hodnota sa vypočítavajú automaticky. Ďalší pokyn je v bunke A42.","MNOŽSTVO","POPIS","JEDNOTKOVÁ CENA","SÚČET RIADKA"]
[{"$nulls":4},{"$f":"IF(SUM(B18)>0,SUM(B18*'Faktúra za služby'!$D18),\"\")","v":""}]
[{"$nulls":4},{"$f":"IF(SUM(B19)>0,SUM(B19*'Faktúra za služby'!$D19),\"\")","v":""}]
[{"$nulls":4},{"$f":"IF(SUM(B20)>0,SUM(B20*'Faktúra za služby'!$D20),\"\")","v":""}]
[{"$nulls":4},{"$f":"IF(SUM(B21)>0,SUM(B21*'Faktúra za služby'!$D21),\"\")","v":""}]
[{"$nulls":4},{"$f":"IF(SUM(B22)>0,SUM(B22*'Faktúra za služby'!$D22),\"\")","v":""}]
[{"$nulls":4},{"$f":"IF(SUM(B23)>0,SUM(B23*'Faktúra za služby'!$D23),\"\")","v":""}]
[{"$nulls":4},{"$f":"IF(SUM(B24)>0,SUM(B24*'Faktúra za služby'!$D24),\"\")","v":""}]
[{"$nulls":4},{"$f":"IF(SUM(B25)>0,SUM(B25*'Faktúra za služby'!$D25),\"\")","v":""}]
[{"$nulls":4},{"$f":"IF(SUM(B26)>0,SUM(B26*'Faktúra za služby'!$D26),\"\")","v":""}]
[{"$nulls":4},{"$f":"IF(SUM(B27)>0,SUM(B27*'Faktúra za služby'!$D27),\"\")","v":""}]
[{"$nulls":4},{"$f":"IF(SUM(B28)>0,SUM(B28*'Faktúra za služby'!$D28),\"\")","v":""}]
[{"$nulls":4},{"$f":"IF(SUM(B29)>0,SUM(B29*'Faktúra za služby'!$D29),\"\")","v":""}]
[{"$nulls":4},{"$f":"IF(SUM(B30)>0,SUM(B30*'Faktúra za služby'!$D30),\"\")","v":""}]
[{"$nulls":4},{"$f":"IF(SUM(B31)>0,SUM(B31*'Faktúra za služby'!$D31),\"\")","v":""}]
[{"$nulls":4},{"$f":"IF(SUM(B32)>0,SUM(B32*'Faktúra za služby'!$D32),\"\")","v":""}]
[{"$nulls":4},{"$f":"IF(SUM(B33)>0,SUM(B33*'Faktúra za služby'!$D33),\"\")","v":""}]
[{"$nulls":4},{"$f":"IF(SUM(B34)>0,SUM(B34*'Faktúra za služby'!$D34),\"\")","v":""}]
[{"$nulls":4},{"$f":"IF(SUM(B35)>0,SUM(B35*'Faktúra za služby'!$D35),\"\")","v":""}]
[{"$nulls":4},{"$f":"IF(SUM(B36)>0,SUM(B36*'Faktúra za služby'!$D36),\"\")","v":""}]
[{"$nulls":4},{"$f":"IF(SUM(B37)>0,SUM(B37*'Faktúra za služby'!$D37),\"\")","v":""}]
[{"$nulls":3},"MEDZISÚČET",{"$f":"IF(SUM(E18:E37)>0,SUM(E18:E37),\"\")","v":""}]
[{"$nulls":3},"DAŇ Z OBRATU"]
[{"$nulls":3},"CELKOVÁ HODNOTA",{"$f":"IF(SUM(E38)>0,SUM((E38*E39)+E38),\"\")","v":""}]
[]
["V bunke D42 sa automaticky aktualizuje názov spoločnosti.","Všetky šeky vystaviť v prospech spoločnosti",null,{"$f":"B3","v":"Názov spoločnosti"}]
["V bunke napravo sa nachádza poďakovanie.","ĎAKUJEME, ŽE VYUŽÍVATE NAŠE SLUŽBY."]